Cogmind - Beta 10.2 *** ADVENTURER MODE // 2022.02.17 @ 04:27:51 Player: woegarden Result: Destroyed by S-10 Pest with Light Assault Rifle Performance ------------- Evolutions (1) 500 Regions Visited (2) 400 Robots Destroyed (2) 10 Value Destroyed (81) 81 Prototype IDs (0) 0 Alien Tech Used (0) 0 Bonus (0) 0 TOTAL SCORE: 991 Bonus ------- None Cogmind --------- Core Integrity 0/400 Matter 168/300 Energy 100/100 System Corruption 0% Temperature Cool (0) Movement Core (550) Ox10 Location -9/Materials Parts ------- > --- POWER (1) -------- (None) > --- PROPULSION (2) --- (None) > --- UTILITY (4) ------ High-capacity Storage Unit Terrain Scanner > --- WEAPON (2) ------- (None) > --- INVENTORY (12) --- Small Storage Unit High-powered Tractor Beam Assault Rifle Peak State ------------ > --- POWER ------------ Ion Engine > --- PROPULSION ------- Improved Hover Unit Improved Hover Unit > --- UTILITY ---------- Small Storage Unit Improved Sensor Array Terrain Scanner > --- WEAPON ----------- Heavy EM Pulse Gun Assault Rifle > --- INVENTORY -------- High-powered Tractor Beam Assault Rifle [Rating: 12] Favorites ----------- Power Ion Engine Engine Ion Engine Propulsion Improved Hover Unit Treads Light Treads Hover Unit Improved Hover Unit Utility Improved Sensor Array Device Improved Sensor Array Storage Small Storage Unit Weapon Assault Rifle Energy Gun Heavy EM Pulse Gun Ballistic Gun Assault Rifle Build | -11 -10 -9 ------- Run | Scr Mat Mat Slots Evolved 2 | . . 2 Power . | . . . Propulsion . | . . . Utility 2 | . . 2 Weapon . | . . . Parts Attached 14 | 6 6 2 Power 1 | 1 . . Engine 1 | 1 . . Core . | . . . Reactor . | . . . Propulsion 4 | 2 2 . Treads 2 | 2 . . Leg . | . . . Wheel . | . . . Hover 2 | . 2 . Flight . | . . . Utility 5 | 1 2 2 Device 2 | . 2 . Storage 3 | 1 . 2 Processor . | . . . Hackware . | . . . Protection . | . . . Artifact . | . . . Weapon 4 | 2 2 . Energy Gun 1 | . 1 . Energy Cannon . | . . . Ballistic Gun 3 | 2 1 . Ballistic Cannon . | . . . Launcher . | . . . Special Weapon . | . . . Impact Weapon . | . . . Slashing Weapon . | . . . Piercing Weapon . | . . . Special Melee Weapon . | . . . Unidentified Prototypes . | . . . Parts Lost 6 | . . 6 Power 1 | . . 1 Propulsion 2 | . . 2 Utility 1 | . . 1 Weapon 2 | . . 2 Highest Loss Streak 6 | . . 6 Average Slot Usage (%) 89 | . 97 68 Engine 12 | . 14 9 Treads 3 | . 5 . Hover 20 | . 23 14 Device 21 | . 21 20 Storage 5 | . 4 7 Energy Gun 4 | . 3 8 Ballistic Gun 19 | . 24 9 Naked Turns . | . . . Heaviest Build 44 | 13 14 44 Greatest Support 40 | 40 40 16 Greatest Overweight (x) 13 | . 4 13 Average Overweight (x) . | . . 1 Largest Inventory Capacity 12 | 6 6 12 Average Capacity 5 | 4 4 9 Most Carried 4 | 3 2 4 Average Carried 1 | . . 2 Final Capacity 12 | 6 4 12 Final Carried 3 | . 2 3 Class Distribution -------------------- 100% | Mutant Dominant Class ---------------- Mutant | -10/Materials Mutant | -9/Materials Resources | -11 -10 -9 ----------- Run | Scr Mat Mat Matter Collected 214 | 214 . . Remotely . | . . . Salvage Created 110 | . 110 . Parts 7 | . 7 . Haulers Intercepted . | . . . Recyclers Shooed . | . . . Parts Field Recycled . | . . . Retrieved Matter . | . . . Parts Self-Destructed . | . . . Prevented . | . . . Kills | -11 -10 -9 ------- Run | Scr Mat Mat Combat Hostiles Destroyed 2 | . 2 . Guns 2 | . 2 . Classes Destroyed 1 | . 1 . Grunt 2 | . 2 . Best Kill Streak 2 | . 2 . Combat Bots Only 2 | . 2 . Max Kills in Single Turn 1 | . 1 . Gunslinging . | . . . Exploded . | . . . Melee . | . . . Uniques/NPCs Destroyed . | . . . Combat | -11 -10 -9 -------- Run | Scr Mat Mat Damage Taken 853 | . 120 733 Core 440 | . 38 402 Absorbed by Shields . | . . . Core Remaining (%) 92 | 100 84 . Volleys Fired 10 | . 10 . Largest 2 | . 2 . Hottest 65 | . 65 . Shots Fired 20 | . 20 . Gun 20 | . 20 . Cannon . | . . . Launcher . | . . . Special . | . . . Kinetic 12 | . 12 . Thermal . | . . . Explosive . | . . . Electromagnetic 8 | . 8 . Robot Hit Streak 5 | . 5 . Robot Miss Streak 5 | . 5 . Penetration Max . | . . . Secondary Targets . | . . . Shots Hit Robots 7 | . 7 . Core Hits 4 | . 4 . Critical Hits . | . . . Critical Kills . | . . . Critical Parts Destroyed . | . . . Melee Attacks . | . . . Impact . | . . . Slashing . | . . . Piercing . | . . . Sneak Attacks . | . . . Combat Hostiles . | . . . Follow-up Attacks . | . . . Damage Inflicted 72 | . 72 . Guns 72 | . 72 . Cannons . | . . . Explosions . | . . . Melee . | . . . Ramming . | . . . Kinetic 26 | . 26 . Thermal . | . . . Explosive . | . . . Electromagnetic 46 | . 46 . Impact . | . . . Slashing . | . . . Piercing . | . . . Highest Corruption . | . . . Average Corruption . | . . . Corruption Purged . | . . . Overload Shots . | . . . Overflow Damage . | . . . Projectiles . | . . . Explosions . | . . . Melee . | . . . Knockbacks . | . . . Impact . | . . . Kinetic . | . . . Secondary . | . . . Self-Inflicted Damage . | . . . Shots . | . . . Rammed . | . . . Targets Rammed . | . . . Kicked . | . . . Crushed . | . . . Highest Temperature 104 | . 104 . Average Temperature 50 | . 50 . Received Heat Transfer 282 | . 48 234 Siege Activations . | . . . Robots Corrupted . | . . . Combat Hostiles . | . . . Parts Fried . | . . . Impact Corruptions . | . . . Robots Melted . | . . . Combat Hostiles . | . . . Parts Melted . | . . . Heat Transferred . | . . . Parts Sabotaged . | . . . Parts Stolen . | . . . Parts Stripped . | . . . Power Chain Reactions . | . . . Missiles Intercepted . | . . . Alert | -11 -10 -9 ------- Run | Scr Mat Mat Peak Influence 137 | . 137 79 Initial 49 | . . 49 Average 40 | . 39 66 Maximum Alert Level . | . . . Low Security (%) 100 | 100 100 100 Level 1 . | . . . Level 2 . | . . . Level 3 . | . . . Level 4 . | . . . Level 5 . | . . . High Security . | . . . Max Security . | . . . Squads Dispatched . | . . . Investigation . | . . . Extermination . | . . . Reinforcement . | . . . Assault . | . . . Garrison . | . . . Intercept . | . . . Construction Impeded . | . . . Haulers Reinforced . | . . . Stealth | -11 -10 -9 --------- Run | Scr Mat Mat Distress Signals 2 | . 2 . Communications Jammed . | . . . Distress Signals . | . . . Times Spotted 18 | . 9 9 Peak Tracking Total 8 | . 7 8 Tactical Retreats . | . . . Traps | -11 -10 -9 ------- Run | Scr Mat Mat Traps Triggered . | . . . Indirectly . | . . . Trap Hack Attempts . | . . . Triggered . | . . . Disarmed . | . . . Reprogrammed 6 | . 6 . Reused . | . . . Traps Extracted . | . . . Installed . | . . . Triggered . | . . . Machines | -11 -10 -9 ---------- Run | Scr Mat Mat Machines Disabled . | . . . Max in Single Turn . | . . . Machines Sabotaged . | . . . Garrisons Compromised . | . . . Overloaded Fab Kills . | . . . Fab Network Shutdowns . | . . . Hacking | -11 -10 -9 --------- Run | Scr Mat Mat Machines Accessed 4 | . 4 . Terminals 3 | . 3 . Fabricators . | . . . Repair Stations . | . . . Recycling Units 1 | . 1 . Scanalyzers . | . . . Garrison Access . | . . . Total Hacks 12 | . 12 . Successful 10 | . 10 . Failed 2 | . 2 . Catastrophic 1 | . 1 . Database Lockouts . | . . . Manual 1 | . 1 . Terminals 11 | . 11 . Fabricators . | . . . Repair Stations . | . . . Recycling Units 1 | . 1 . Scanalyzers . | . . . Garrison Access . | . . . Terminal Hacks 9 | . 9 . Record 3 | . 3 . Machine Index 1 | . 1 . Alert Level 1 | . 1 . Reprogram Traps 1 | . 1 . Hauler Manifests 1 | . 1 . Registered Prototypes 1 | . 1 . Zone Layout 1 | . 1 . Fabricator Hacks . | . . . Repair Station Hacks . | . . . Recycling Unit Hacks 1 | . 1 . Report Inventory 1 | . 1 . Scanalyzer . | . . . Garrison Access Hacks . | . . . Unauthorized Hacks . | . . . Terminals . | . . . Fabricators . | . . . Repair Stations . | . . . Recycling Units . | . . . Scanalyzers . | . . . Garrison Access . | . . . Data Cores Recovered . | . . . Used . | . . . Hacking Detections 3 | . 3 . Full Trace Events 3 | . 3 . Feedback Events . | . . . Feedback Blocked . | . . . Robot Schematics Acquired . | . . . Robots Built . | . . . Matter . | . . . Time . | . . . Total Robot Build Rating . | . . . Part Schematics Acquired . | . . . Parts Built . | . . . Matter . | . . . Time . | . . . Total Part Build Rating . | . . . Parts Repaired . | . . . Time . | . . . Parts Recycled . | . . . Recycled Matter . | . . . Retrieved Matter . | . . . Retrieved Components . | . . . Parts Scanalyzed . | . . . Part Schematics Acquired . | . . . Parts Damaged . | . . . Bothacking | -11 -10 -9 ------------ Run | Scr Mat Mat Used RIF Installer . | . . . Robots Hacked . | . . . Non-combat . | . . . Combat . | . . . Robot Hacks Applied . | . . . Relay Couplers Released . | . . . Robots Rewired . | . . . Allies Hacked . | . . . Hacks Repelled . | . . . Allies | -11 -10 -9 -------- Run | Scr Mat Mat Total Allies . | . . . Largest Group . | . . . Highest-Rated Group . | . . . Highest-Rated Ally . | . . . Total Orders . | . . . Ally Attacks . | . . . Total Damage . | . . . Kills . | . . . Allies Corrupted . | . . . Allies Melted . | . . . Intel | -11 -10 -9 ------- Run | Scr Mat Mat Robot Analysis Total . | . . . Derelict Logs Recovered . | . . . Drone Launches . | . . . Drone Recoveries . | . . . Exploration | -11 -10 -9 ------------- Run | Scr Mat Mat Turns Passed 461 | 63 282 116 Spaces Moved 488 | 36 355 97 Core 12 | 6 1 5 Treads 58 | 30 28 . Legs . | . . . Wheels . | . . . Hover 418 | . 326 92 Flight . | . . . Fastest Speed 50 | 50 56 56 Average Speed 81 | 141 64 118 Slowest Speed 700 | 160 250 700 Overloaded Moves . | . . . Propulsion Burnouts . | . . . Robots Hopped . | . . . Cave-ins Triggered . | . . . Exploration Rate (%) 22 | 3 51 14 Regions Visited 2 Branch Regions . Pre-discovered Areas . | . . . Known Exits Taken . | . . . Unknown Exits Taken 2 | 1 1 . Scrap Searched . | . . . Spaces Dug . | . . . Terrain Destroyed . | . . . Melee . | . . . Projectile . | . . . AOE . | . . . Terrain Rammed . | . . . Walls Destroyed . | . . . Machines Disabled . | . . . Actions | -11 -10 -9 --------- Run | Scr Mat Mat Total 539 | 49 388 102 Wait 9 | . 9 . Move 486 | 35 354 97 Hop . | . . . Pick Up 14 | 7 5 2 Fast Attach . | . . . Attach 13 | 6 5 2 Detach 3 | . 2 1 Swap 1 | . 1 . Drop 3 | 1 2 . Fire 10 | . 10 . Melee . | . . . Ram . | . . . Kick . | . . . Crush . | . . . Escape Stasis . | . . . Rewire . | . . . Trap . | . . . Miscellaneous . | . . . Route ------- -11/Scrapyard -10/Materials (discovered 3 exits: [*Mat x2] / [Min]) -9/Materials History --------- Turn | Location | Event 4 | -11/Scrapyard | Discovered new exit (range 15) 64 | -11/Scrapyard | Entered Materials 280 | -10/Materials | Discovered new exit (range 14) 317 | -10/Materials | Build established: Mutant 325 | -10/Materials | Discovered new exit (range 12) 325 | -10/Materials | Discovered new exit (range 20) 346 | -10/Materials | Entered another Materials area 346 | -9/Materials | Evolved 2 slots: Utility x2 453 | -9/Materials | Core integrity fell below 50% 459 | -9/Materials | Core integrity fell below 20% 462 | -9/Materials | Destroyed by S-10 Pest with Light Assault Rifle Last Messages --------------- >>Index(Machines) Found 11 machines: 8 Terminals 1 Repair Station 2 Recycling Units Downloaded coordinate data. 00330_ W-16 Scout distress signal alerts nearby ally. PARAMETERS=UTILITY_2 LOCATION=UNKNOWN GOAL=ESCAPE 00379_ Acquired Hpw. Tractor Beam. 00389_ Acquired Hcp. Storage Unit. 00416_ Imp. Hover Unit destroyed. 00432_ Hvy. EM Pulse Gun destroyed. 00434_ Imp. Hover Unit destroyed. 00443_ Ion Engine destroyed. 00443_ Assault Rifle destroyed. 00446_ S-10 Pest destroyed. 00449_ Imp. Sensor Array destroyed. 00459_ S-10 Pest destroyed. Map ----- +----------------------------------------------------+ | | | | | | | | | | | | | | | | | | | | | | | | | | | | | | | ?????????#??????????????#???????????????????????? | | ????????????????????##??#???????????????????????? | | ?????????????????#??# ######????????????????????? | | ????????????????????#Y #??????????????????? | | ??????????########??# """ #??????????????????? | | ????????? #???#!! """ #??????????????????? | | ??? ???? #???#!! """ #??????????????????? | | ###+#### #???#!! #???"??????????????? | | ##??# """#??????????????????? | | ???+ R"##????? ???????????? | | #????????# @"""#??????????????????? | | #??##?#??# #??????????????????? | | ###??????#####s####??????????????????? | | ##?########## #?????#??????????????? | | #????????????????????? | | ######## ########/##%[ #??????? ????????????? | | #??????# # ##== #????????????????????? | | #?#????# # ##%=Y#????????????????????? | | #+######?# # # Y #???????????????????? | | # #?# # #Y ??????????????????? | | # ### # + Y ?????????????????? | | # #?# # # ??????????????? | | + ### # # #####???????????????? | | # + + ## ##???????????????????? | | # ### # ## #????????????????????? | | ########?# ##/######## #????????????????????? | | #????????+ ??????? #????????????????????? | | #?????? ?####???????? #????????????????????? | | #? ?????????????????? #????????????????????? | | #???????????????????? #????????????????????? | | #????????????????????? ?????????????????????? | | #?????????????????????????????????????????????? | | #??????????#??????????????????????????????????? | | #?????????????????????????????????????????????? | | #?????????????????????????????????????????????? | +----------------------------------------------------+ Best States ------------- Heat Dissipation 28 Energy Generation 10 Energy Capacity 250 Matter Stores 254 Matter Capacity 300 Sight Range 16 Robot Scan Range 13 Terrain Scan Range 14 Terrain Scan Density 10 Resistance: KI 20 Resistance: TH 20 Resistance: EX 20 Resistance: EM 20 Resistance: I 20 Resistance: S 20 Resistance: P 20 Evasion (%) 53 Recoil Reduction 2 Offensive Hacking 10 Item Schematics ----------------- None Robot Schematics ------------------ None Fabricated ------------ Nothing Alien Tech Used ----------------- None Achievements -------------- Shopping List Storm Trooper Challenges ------------ None Game ------ Seed MyomerTrackerRigger Manual? 0 Play Time 00:12:46 Cumulative 1.6 hours Start 2022.02.17 @ 04:16:31 End 2022.02.17 @ 04:27:51 Sessions 1 Manual Loads 0 Difficulty Adventurer Special Mode None Game No. 3 Rogue 0 Adventurer 3 Explorer 0 Win Type - Total 0 Types 0/0/0/0/0/0/0/0/0 Lore% 2 Gallery% 4 Achievement% 4 Wizard Run 0 Options --------- ASCII 0 Keyboard 0 Movement Mouse Keybinds 0 Fullscreen 1 Font 16/Proggy Map View 76x50 Tactical HUD 1 Map Filters NONE Filters NONE Steam 1 RUN: 38c82a17-4a1c-4b3c-bb90-5d8dfeb98f8d